fUSD/lending_fUSD_20260401
["ID","MTS","AMOUNT","RATE_DAILY","PERIOD"]
[419212281,1775019080066,-151.0,0.000425,120]
[419212282,1775019080076,-2106.955926,0.000425,120]
[419212283,1775019080086,-302.093611,0.000425,120]
[419212284,1775019080095,-170.656032,0.000425,120]
[419212285,1775019080106,-2106.955926,0.000425,120]
[419212286,1775019080115,-151.0,0.000425,120]
[419212287,1775019080124,-151.0,0.000425,120]
[419212288,1775019080134,-151.0,0.000425,120]
[419212289,1775019080143,-292.439697,0.000425,120]
[419212290,1775019080153,-168.016551,0.000425,120]
[419212291,1775019080163,-292.439697,0.000425,120]
[419212292,1775019080174,-168.016551,0.000425,120]
[419212293,1775019080184,-292.439697,0.000425,120]
[419212294,1775019080193,-168.016551,0.000425,120]
[419212295,1775019080203,-292.439697,0.000425,120]
[419212296,1775019080213,-168.016551,0.000425,120]
[419212297,1775019080223,-603.555246,0.000425,120]
[419212298,1775019080232,-603.555246,0.000425,120]
[419212299,1775019080242,-603.555246,0.000425,120]
[419212300,1775019080252,-151.0,0.000425,120]
[419212301,1775019080263,-603.555246,0.000425,120]
[419212302,1775019080273,-151.0,0.000425,120]
[419212303,1775019080282,-402.54041,0.000425,120]
[419212304,1775019080293,-151.0,0.000425,120]
[419212305,1775019080303,-402.54041,0.000425,120]
[419212306,1775019080312,-402.54041,0.000425,120]
[419212307,1775019080322,-151.0,0.000425,120]
[419212308,1775019080332,-151.0,0.000425,120]
[419212309,1775019080343,-402.54041,0.000425,120]
[419212310,1775019080353,-151.0,0.000425,120]
[419212311,1775019080363,-151.0,0.000425,120]
[419212312,1775019080374,-151.0,0.000425,120]
[419212313,1775019080384,-1272.758407,0.000425,120]
[419212314,1775019080394,-374.687718,0.000425,120]
[419212315,1775019080404,-1272.758407,0.000425,120]
[419212316,1775019080414,-151.0,0.000425,120]
[419212317,1775019080424,-374.687718,0.000425,120]
[419212318,1775019080434,-151.0,0.000425,120]
[419212319,1775019080444,-1272.758407,0.000425,120]
[419212320,1775019080454,-374.687718,0.000425,120]
[419212321,1775019080464,-151.0,0.000425,120]
[419212322,1775019080474,-1272.758407,0.000425,120]
[419212323,1775019080484,-281.27557,0.000425,120]
[419212324,1775019080494,-151.0,0.000425,120]
[419212325,1775019080504,-374.687718,0.000425,120]
[419212326,1775019080514,-151.0,0.000425,120]
[419212327,1775019080524,-151.0,0.000425,120]
[419212328,1775019080534,-151.0,0.000425,120]
[419212329,1775019080544,-810.172394,0.000425,120]
[419212330,1775019080553,-223.050487,0.000425,120]
[419212331,1775019080563,-151.0,0.000425,120]
[419212332,1775019080572,-151.0,0.000425,120]
[419212333,1775019080582,-151.0,0.000425,120]
[419212334,1775019080592,-223.050487,0.000425,120]
[419212335,1775019080601,-810.172394,0.000425,120]
[419212336,1775019080611,-151.0,0.000425,120]
[419212337,1775019080621,-225.517648,0.000425,120]
[419212338,1775019080631,-151.0,0.000425,120]
[419212339,1775019080640,-3433.898481,0.000425,120]
[419212340,1775019080651,-810.172394,0.000425,120]
[419212341,1775019080661,-223.050487,0.000425,120]
[419212342,1775019080670,-151.0,0.000425,120]
[419212343,1775019080680,-151.0,0.000425,120]
[419212344,1775019080691,-3433.898481,0.000425,120]
[419212345,1775019080701,-810.172394,0.000425,120]
[419212346,1775019080710,-223.050487,0.000425,120]
[419212347,1775019080720,-3433.898481,0.000425,120]
[419212348,1775019080729,-343.842795,0.000425,120]
[419212349,1775019080739,-3433.898481,0.000425,120]
[419212350,1775019080749,-343.842795,0.000425,120]
[419212351,1775019080759,-343.842795,0.000425,120]
[419212352,1775019080769,-343.842795,0.000425,120]
[419212353,1775019080779,-151.0,0.000425,120]
[419212354,1775019080789,-151.0,0.000425,120]
[419212355,1775019080798,-151.0,0.000425,120]
[419212356,1775019080808,-612.14083194,0.000425,120]
[419212357,1775019080818,-838.01367,0.000425,120]
[419212358,1775019080828,-838.01367,0.000425,120]
[419212359,1775019080838,-838.01367,0.000425,120]
[419212360,1775019080847,-838.01367,0.000425,120]
[419212361,1775019080857,-151.0,0.000425,120]
[419212362,1775019080871,-1905.46,0.000425,120]
[419212363,1775019080881,-86048.81858869,0.000425,120]
[419212364,1775019080891,-1000.0,0.000425,60]
[419212365,1775019080900,-288.05924458,0.000425,60]
[419212366,1775019080910,-150.0,0.00042503,14]
[419212367,1775019080919,-150.0,0.00042504,14]
[419212368,1775019080929,-150.0,0.00042516,14]
[419212369,1775019080939,-150.0,0.00042521,14]
[419212370,1775019080948,-150.0,0.00042546,120]
[419212371,1775019080959,-523.91,0.00042546,120]
[419212372,1775019080968,-150.0,0.00042546,120]
[419212373,1775019080977,-1750.69,0.00042546,120]
[419212374,1775019080987,-150.0,0.00042546,120]
[419212375,1775019080997,-128106.53871111,0.0004257,2]
[419212376,1775019081006,-173.356592,0.0004257,120]
[419212377,1775019081016,-163.965869,0.0004257,120]
[419212378,1775019081026,-151.0,0.0004257,120]
[419212379,1775019081035,-173.235551,0.0004257,35]
[419212380,1775019081045,-173.356592,0.0004257,120]
[419212381,1775019081055,-163.965869,0.0004257,120]
[419212382,1775019081064,-173.235551,0.0004257,35]
[419212383,1775019081075,-173.356592,0.0004257,120]
[419212384,1775019081084,-163.965869,0.0004257,120]
[419212385,1775019081093,-173.235551,0.0004257,35]
[419212386,1775019081103,-173.356592,0.0004257,120]
[419212387,1775019081113,-163.965869,0.0004257,120]
[419212388,1775019081122,-173.235551,0.0004257,35]
[419212389,1775019081130,-162.083599,0.0004257,120]
[419212390,1775019081139,-151.0,0.0004257,120]
[419212391,1775019081148,-151.0,0.0004257,120]
[419212392,1775019081157,-151.0,0.0004257,120]
[419212393,1775019081166,-151.0,0.0004257,120]
[419212394,1775019081176,-151.0,0.0004257,120]
[419212395,1775019081185,-178.149933,0.0004257,120]
[419212396,1775019081196,-217.698153,0.0004257,7]
[419212397,1775019081205,-256.203795,0.0004257,120]
[419212398,1775019081215,-256.203795,0.0004257,120]
[419212399,1775019081224,-256.203795,0.0004257,120]
[419212400,1775019081235,-256.203795,0.0004257,120]
[419212401,1775019081243,-269.689,0.0004257,120]
[419212402,1775019081253,-269.689,0.0004257,120]
[419212403,1775019081263,-269.689,0.0004257,120]
[419212404,1775019081272,-269.689,0.0004257,120]
[419212405,1775019081281,-151.0,0.0004257,120]
[419212406,1775019081290,-178.009438,0.0004257,120]
[419212407,1775019081299,-151.0,0.0004257,120]
[419212408,1775019081309,-278.445657,0.0004257,120]
[419212409,1775019081319,-151.0,0.0004257,120]
[419212410,1775019081328,-151.0,0.0004257,120]
[419212411,1775019081338,-151.0,0.0004257,120]
[419212412,1775019081347,-151.0,0.0004257,120]
[419212413,1775019081356,-151.0,0.0004257,120]
[419212414,1775019081365,-254.274164,0.0004257,120]
[419212415,1775019081374,-151.0,0.0004257,30]
[419212416,1775019081384,-151.0,0.0004257,30]
[419212417,1775019081393,-151.0,0.0004257,120]
[419212418,1775019081402,-151.0,0.0004257,120]
[419212419,1775019081411,-151.0,0.0004257,120]
[419212420,1775019081420,-151.0,0.0004257,120]
[419212421,1775019081430,-151.0,0.0004257,120]
[419212422,1775019081440,-197.488765,0.0004257,120]
[419212423,1775019081450,-151.0,0.0004257,120]
[419212424,1775019081460,-500.0,0.00042589,30]
[419212425,1775019081470,-153.0,0.000426,120]
[419212426,1775019081480,-4858.259,0.00042618,2]
[419212427,1775019081489,-4858.259,0.00042618,2]
[419212428,1775019081500,-150.0,0.0004265,14]
[419212429,1775019081510,-150.0,0.00042664,14]
[419212430,1775019081519,-232.12,0.00042709,90]
[419212431,1775019081528,-500.0,0.0004272,2]
[419212432,1775019081538,-200.0,0.00042739,120]
[419212433,1775019081547,-231.46,0.00042739,120]
[419212434,1775019081556,-856.0,0.0004274,120]
[419212435,1775019081566,-4000.0,0.0004274,14]
[419212436,1775019081576,-450.0,0.0004274,10]
[419212437,1775019081585,-250.0,0.0004274,10]
[419212438,1775019081594,-500.0,0.0004274,120]
[419212439,1775019081604,-500.0,0.0004274,120]
[419212440,1775019081614,-500.0,0.0004274,120]
[419212441,1775019081625,-500.0,0.0004274,120]
[419212442,1775019081635,-500.0,0.0004274,120]
[419212443,1775019081644,-500.0,0.0004274,120]
[419212444,1775019081653,-500.0,0.0004274,120]
[419212445,1775019081662,-500.0,0.0004274,120]
[419212446,1775019081672,-500.0,0.0004274,120]
[419212447,1775019081681,-500.0,0.0004274,120]
[419212448,1775019081691,-500.0,0.0004274,120]
[419212449,1775019081702,-500.0,0.0004274,120]
[419212450,1775019081712,-500.0,0.0004274,120]
[419212451,1775019081724,-500.0,0.0004274,120]
[419212452,1775019081734,-610.72934933,0.0004274,120]
[419212453,1775019081744,-2000.0,0.0004274,10]
[419212454,1775019081753,-1004.34,0.0004274,120]
[419212455,1775019081763,-1000.0,0.0004275,60]
[419212456,1775019081771,-1000.0,0.00042759,14]
[419212457,1775019081781,-4858.259,0.00042768,2]
[419212458,1775019081791,-4858.259,0.00042768,2]
[419212459,1775019081801,-150.0,0.0004279,14]
[419212460,1775019081810,-150.0,0.00042797,14]
[419212461,1775019081819,-300.0,0.00042797,2]
[419212462,1775019081830,-200.0,0.00042808,93]
[419212463,1775019081842,-200.0,0.00042808,93]
[419212464,1775019081853,-751.41868334,0.00042808,93]
[419212465,1775019081863,-181.08010149,0.00042808,93]
[419212466,1775019081874,-151.0,0.00042808,93]
[419212467,1775019081885,-500.0,0.00042808,93]
[419212468,1775019081895,-151.0,0.00042808,93]
[419212469,1775019081903,-500.0,0.00042808,93]
[419212470,1775019081913,-8260.13072239,0.00042808,93]
[419212471,1775019081922,-1221.88697738,0.00042808,93]
[419212472,1775019081932,-500.0,0.00042808,93]
[419212473,1775019081942,-599.60298507,0.00042808,93]
[419212474,1775019081953,-1235.18214925,0.00042808,93]
[419212475,1775019081964,-250.0,0.00042808,93]
[419212476,1775019081975,-181.08010149,0.00042808,93]
[419212477,1775019081985,-500.0,0.00042808,93]
[419212478,1775019081994,-151.0,0.00042808,93]
[419212479,1775019082004,-200.0,0.00042808,93]
[419212480,1775019082013,-181.08010149,0.00042808,93]
[419212481,1775019082023,-203.86501493,0.00042808,93]
[419212482,1775019082033,-151.0,0.00042808,93]
[419212483,1775019082043,-500.0,0.00042808,93]
[419212484,1775019082053,-1000.0,0.00042812,14]
[419212485,1775019082063,-150.0,0.00042836,14]
[419212486,1775019082073,-500.0,0.00042863,30]
[419212487,1775019082084,-233.93350936,0.00042873,14]
[419212488,1775019082095,-153.414878,0.00042877,120]
[419212489,1775019082105,-150.0,0.00042885,14]
[419212490,1775019082116,-220.02,0.000429,60]
[419212491,1775019082127,-1365.36994483,0.000429,120]
[419212492,1775019082137,-200.0,0.000429,18]
[419212493,1775019082148,-150.0,0.000429,27]
[419212494,1775019082158,-192.11,0.000429,47]
[419212495,1775019082169,-6216.24025767,0.000429,28]
[419212496,1775019082179,-150.0,0.00042909,14]
[419212497,1775019082188,-150.0,0.00042914,14]
[419212498,1775019082197,-4858.259,0.00042919,2]
[419212499,1775019082207,-4858.259,0.00042919,2]
[419212500,1775019082217,-250.0,0.00042932,93]
[419212501,1775019082226,-250.0,0.00042932,93]
[419212502,1775019082236,-358.45,0.00042932,93]
[419212503,1775019082245,-250.0,0.00042932,93]
[419212504,1775019082255,-151.0,0.00042933,60]
[419212505,1775019082264,-500.0,0.00042957,120]
[419212506,1775019082274,-235.04737311,0.00042957,120]
[419212507,1775019082284,-189.00991136,0.00042969,120]
[419212508,1775019082294,-1000.0,0.0004297,3]
[419212509,1775019082303,-500.0,0.0004297,3]
[419212510,1775019082313,-300.0,0.00042974,2]
[419212511,1775019082321,-1000.0,0.0004298,14]
[419212512,1775019082330,-150.0,0.00042985,14]
[419212513,1775019082340,-805.6,0.00042987,30]
[419212514,1775019082350,-1828.94342,0.00042987,120]
[419212515,1775019082359,-1828.94343,0.00042987,120]
[419212516,1775019082368,-1828.94343,0.00042987,120]
[419212517,1775019082378,-1828.94342,0.00042987,120]
[419212518,1775019082387,-1828.94343,0.00042987,120]
[419212519,1775019082397,-1828.94343,0.00042987,120]
[419212520,1775019082406,-200.0,0.00042989,60]
[419212521,1775019082416,-160.65067359,0.00042989,60]
[419212522,1775019082426,-200.0,0.00042989,60]
[419212523,1775019082436,-601.3376128,0.00042989,60]
[419212524,1775019082446,-174.61919141,0.00042989,60]
[419212525,1775019082455,-151.0,0.00042989,60]
[419212526,1775019082465,-500.0,0.00042989,60]
[419212527,1775019082475,-151.0,0.00042989,60]
[419212528,1775019082484,-500.0,0.00042989,60]
[419212529,1775019082494,-7965.41053268,0.00042989,60]
[419212530,1775019082503,-2486.0,0.00042989,60]
[419212531,1775019082512,-500.0,0.00042989,60]
[419212532,1775019082522,-578.20924308,0.00042989,60]
[419212533,1775019082532,-1191.11104075,0.00042989,60]
[419212534,1775019082541,-250.0,0.00042989,60]
[419212535,1775019082551,-716.97946142,0.00042989,60]
[419212536,1775019082560,-174.61919141,0.00042989,60]
[419212537,1775019082570,-500.0,0.00042989,60]
[419212538,1775019082579,-151.0,0.00042989,60]
[419212539,1775019082589,-200.0,0.00042989,60]
[419212540,1775019082599,-174.61919141,0.00042989,60]
[419212541,1775019082609,-196.59114265,0.00042989,60]
[419212542,1775019082618,-151.0,0.00042989,60]
[419212543,1775019082628,-500.0,0.00042989,60]
[419212544,1775019082639,-500.0,0.00042996,21]
[419212545,1775019082648,-500.0,0.00042996,21]
[419212546,1775019082657,-500.0,0.00042996,21]
[419212547,1775019082667,-500.0,0.00042996,21]
[419212548,1775019082677,-500.0,0.00042996,21]
[419212549,1775019082687,-500.0,0.00042996,21]
[419212550,1775019082696,-500.0,0.00042996,21]
[419212551,1775019082706,-500.0,0.00042996,21]
[419212552,1775019082716,-150.0,0.00042996,120]
[419212553,1775019082726,-500.0,0.00042996,21]
[419212554,1775019082736,-150.0,0.00042996,120]
[419212555,1775019082746,-500.0,0.00042996,21]
[419212556,1775019082755,-500.0,0.00042996,21]
[419212557,1775019082764,-150.0,0.00042996,120]
[419212558,1775019082773,-500.0,0.00042996,21]
[419212559,1775019082783,-285.29652053,0.00042996,120]
[419212560,1775019082792,-396.68097798,0.00042996,21]
[419212561,1775019082802,-158.91030595,0.00042996,120]
[419212562,1775019082811,-150.0,0.00042996,120]
[419212563,1775019082820,-163.48039526,0.00042996,120]
[419212564,1775019082830,-500.0,0.00042996,120]
[419212565,1775019082839,-500.0,0.00042996,120]
[419212566,1775019082849,-500.0,0.00042996,120]
[419212567,1775019082858,-500.0,0.00042996,120]
[419212568,1775019082867,-500.0,0.00042996,120]
[419212569,1775019082877,-500.0,0.00042996,120]
[419212570,1775019082885,-500.0,0.00042996,120]
[419212571,1775019082895,-500.0,0.00042996,120]
[419212572,1775019082905,-500.0,0.00042996,120]
[419212573,1775019082915,-500.0,0.00042996,120]
[419212574,1775019082926,-500.0,0.00042996,120]
[419212575,1775019082935,-500.0,0.00042996,120]
[419212576,1775019082945,-436.48877466,0.00042996,120]
[419212577,1775019082956,-500.0,0.00042996,120]
[419212578,1775019082966,-500.0,0.00042996,120]
[419212579,1775019082976,-500.0,0.00042996,120]
[419212580,1775019082986,-500.0,0.00042996,120]
[419212581,1775019082996,-500.0,0.00042996,120]
[419212582,1775019083007,-500.0,0.00042996,120]
[419212583,1775019083017,-500.0,0.00042996,120]
[419212584,1775019083026,-508.88121175,0.00042996,120]
[419212585,1775019083036,-500.0,0.00042996,120]
[419212586,1775019083046,-500.0,0.00042996,120]
[419212587,1775019083056,-500.0,0.00042996,120]
[419212588,1775019083065,-500.0,0.00042996,120]
[419212589,1775019083214,-500.0,0.00042996,120]
[419212590,1775019083224,-500.0,0.00042996,120]
[419212591,1775019083233,-500.0,0.00042996,120]
[419212592,1775019083243,-500.0,0.00042996,120]
[419212593,1775019083253,-500.0,0.00042996,120]
[419212594,1775019083263,-500.0,0.00042996,120]
[419212595,1775019083273,-500.0,0.00042996,120]
[419212596,1775019083283,-500.0,0.00042996,120]
[419212597,1775019083293,-500.0,0.00042996,120]
[419212598,1775019083302,-500.0,0.00042996,120]
[419212599,1775019083312,-500.0,0.00042996,120]
[419212600,1775019083322,-500.0,0.00042996,120]
[419212601,1775019083332,-500.0,0.00042996,120]
[419212602,1775019083342,-500.0,0.00042996,120]
[419212603,1775019083351,-500.0,0.00042996,120]
[419212604,1775019083361,-500.0,0.00042996,120]
[419212605,1775019083371,-537.28319898,0.00042996,120]
[419212606,1775019083381,-500.0,0.00042996,120]
[419212607,1775019083391,-302.55639078,0.00042996,120]
[419212608,1775019083401,-227.707439,0.00042997,120]
[419212609,1775019083411,-3000.0,0.00042999,4]
[419212610,1775019083420,-666.0,0.00042999,30]
[419212611,1775019083431,-500.0,0.00042999,120]
[419212612,1775019083440,-500.0,0.00042999,120]
[419212613,1775019083450,-500.0,0.00042999,120]
[419212614,1775019083460,-350.37058547,0.00042999,120]
[419212615,1775019083469,-109968.47,0.00042999,120]
[419212616,1775019083479,-253.666059,0.00042999,120]
[419212617,1775019083488,-439.763631,0.00042999,120]
[419212618,1775019083498,-253.666059,0.00042999,120]
[419212619,1775019083508,-151.234938,0.00042999,120]
[419212620,1775019083519,-151.0,0.00042999,120]
[419212621,1775019083529,-439.763631,0.00042999,120]
[419212622,1775019083538,-253.666059,0.00042999,120]
[419212623,1775019083550,-439.763631,0.00042999,120]
[419212624,1775019083559,-235.924091,0.00042999,30]
[419212625,1775019083569,-253.666059,0.00042999,120]
[419212626,1775019083579,-439.763631,0.00042999,120]
[419212627,1775019083593,-235.924091,0.00042999,30]
[419212628,1775019083603,-205.686774,0.00042999,120]
[419212629,1775019083613,-205.686774,0.00042999,120]
[419212630,1775019083622,-235.924091,0.00042999,30]
[419212631,1775019083632,-205.686774,0.00042999,120]
[419212632,1775019083641,-235.924091,0.00042999,30]
[419212633,1775019083651,-205.686774,0.00042999,120]
[419212634,1775019083661,-151.0,0.00042999,120]
[419212635,1775019083671,-151.0,0.00042999,120]
[419212636,1775019083680,-151.0,0.00042999,120]
[419212637,1775019083690,-221.19151,0.00042999,120]
[419212638,1775019083699,-168.463139,0.00042999,120]
[419212639,1775019083709,-191.294335,0.00042999,120]
[419212640,1775019083719,-191.294335,0.00042999,120]
[419212641,1775019083729,-168.463139,0.00042999,120]
[419212642,1775019083738,-168.463139,0.00042999,120]
[419212643,1775019083748,-191.294335,0.00042999,120]
[419212644,1775019083759,-400.0,0.00042999,120]
[419212645,1775019083769,-168.463139,0.00042999,120]
[419212646,1775019083778,-191.294335,0.00042999,120]
[419212647,1775019083788,-400.0,0.00042999,120]
[419212648,1775019083798,-400.0,0.00042999,120]
[419212649,1775019083808,-151.0,0.00042999,14]
[419212650,1775019083818,-400.0,0.00042999,120]
[419212651,1775019083827,-151.0,0.00042999,120]
[419212652,1775019083837,-161.805166,0.00042999,120]
[419212653,1775019083847,-161.805166,0.00042999,120]
[419212654,1775019083857,-161.805166,0.00042999,120]
[419212655,1775019083867,-161.805166,0.00042999,120]
[419212656,1775019083876,-500.0,0.00042999,120]
[419212657,1775019083887,-200.0,0.00042999,120]
[419212658,1775019083897,-420.0,0.00042999,120]
[419212659,1775019083907,-420.0,0.00042999,120]
[419212660,1775019083917,-420.0,0.00042999,120]
[419212661,1775019083927,-420.0,0.00042999,120]
[419212662,1775019083937,-151.0,0.00042999,120]
[419212663,1775019083946,-175.691598,0.00042999,120]
[419212664,1775019083956,-175.691598,0.00042999,120]
[419212665,1775019083966,-151.0,0.00042999,120]
[419212666,1775019083976,-175.691598,0.00042999,120]
[419212667,1775019083986,-151.0,0.00042999,120]
[419212668,1775019083995,-151.0,0.00042999,120]
[419212669,1775019084006,-151.0,0.00042999,120]
[419212670,1775019084015,-175.691598,0.00042999,120]
[419212671,1775019084025,-151.0,0.00042999,120]
[419212672,1775019084034,-151.0,0.00042999,120]
[419212673,1775019084044,-151.0,0.00042999,120]
[419212674,1775019084054,-170.284057,0.00042999,120]
[419212675,1775019084063,-151.0,0.00042999,120]
[419212676,1775019084072,-151.0,0.00042999,120]
[419212677,1775019084082,-151.0,0.00042999,120]
[419212678,1775019084093,-151.0,0.00042999,120]
[419212679,1775019084102,-353.860164,0.00042999,120]
[419212680,1775019084112,-231.716991,0.00042999,120]
[419212681,1775019084121,-196.147739,0.00042999,120]
[419212682,1775019084131,-353.860164,0.00042999,120]
[419212683,1775019084140,-231.716991,0.00042999,120]
[419212684,1775019084150,-196.147739,0.00042999,120]
[419212685,1775019084159,-353.860164,0.00042999,120]
[419212686,1775019084169,-196.147739,0.00042999,120]
[419212687,1775019084179,-353.860164,0.00042999,120]
[419212688,1775019084188,-196.147739,0.00042999,120]
[419212689,1775019084197,-231.716991,0.00042999,120]
[419212690,1775019084207,-231.716991,0.00042999,120]
[419212691,1775019084218,-151.0,0.00042999,120]
[419212692,1775019084227,-268.345093,0.00042999,120]
[419212693,1775019084237,-151.0,0.00042999,120]
[419212694,1775019084247,-268.345093,0.00042999,120]
[419212695,1775019084257,-173.232924,0.00042999,120]
[419212696,1775019084266,-268.345093,0.00042999,120]
[419212697,1775019084277,-268.345093,0.00042999,120]
[419212698,1775019084287,-200.0,0.00042999,30]
[419212699,1775019084297,-719.3559477,0.00042999,30]
[419212700,1775019084306,-160.0,0.00042999,30]
[419212701,1775019084316,-500.0,0.00042999,30]
[419212702,1775019084326,-151.0,0.00042999,30]
[419212703,1775019084336,-151.0,0.00042999,30]
[419212704,1775019084346,-200.0,0.00042999,30]
[419212705,1775019084356,-520.0,0.00042999,30]
[419212706,1775019084366,-220.0,0.00042999,30]
[419212707,1775019084376,-160.0,0.00042999,64]
[419212708,1775019084386,-200.0,0.00042999,64]
[419212709,1775019084396,-500.0,0.00042999,64]
[419212710,1775019084405,-156.587,0.00042999,64]
[419212711,1775019084415,-156.587,0.00042999,64]
[419212712,1775019084425,-200.0,0.00042999,64]
[419212713,1775019084435,-539.24,0.00042999,64]
[419212714,1775019084445,-220.0,0.00042999,64]
[419212715,1775019084454,-200.0,0.00042999,70]
[419212716,1775019084464,-160.0,0.00042999,70]
[419212717,1775019084474,-500.0,0.00042999,70]
[419212718,1775019084485,-162.380719,0.00042999,70]
[419212719,1775019084495,-200.0,0.00042999,70]
[419212720,1775019084504,-559.19188,0.00042999,70]
[419212721,1775019084514,-309.98111957,0.00042999,70]
[419212722,1775019084524,-200.0,0.00042999,120]
[419212723,1775019084535,-160.0,0.00042999,120]
[419212724,1775019084544,-168.3888056,0.00042999,120]
[419212725,1775019084555,-500.0,0.00042999,120]
[419212726,1775019084565,-200.0,0.00042999,120]
[419212727,1775019084575,-579.88197956,0.00042999,120]
[419212728,1775019084585,-162.380719,0.00042999,70]
[419212729,1775019084595,-151.0,0.00042999,30]
[419212730,1775019084605,-168.3888056,0.00042999,120]
[419212731,1775019084615,-151.0,0.00042999,64]
[419212732,1775019084624,-151.0,0.00042999,70]
[419212733,1775019084634,-500.0,0.00042999,30]
[419212734,1775019084644,-151.0,0.00042999,120]
[419212735,1775019084654,-151.0,0.00042999,30]
[419212736,1775019084663,-500.0,0.00042999,64]
[419212737,1775019084673,-151.0,0.00042999,64]
[419212738,1775019084683,-500.0,0.00042999,70]
[419212739,1775019084693,-500.0,0.00042999,30]
[419212740,1775019084704,-151.0,0.00042999,70]
[419212741,1775019084715,-500.0,0.00042999,120]
[419212742,1775019084726,-500.0,0.00042999,64]
[419212743,1775019084736,-151.0,0.00042999,120]
[419212744,1775019084746,-500.0,0.00042999,70]
[419212745,1775019084756,-1000.0,0.00042999,30]
[419212746,1775019084766,-3000.0,0.00042999,30]
[419212747,1775019084776,-500.0,0.00042999,120]
[419212748,1775019084785,-2258.00809214,0.00042999,64]
[419212749,1775019084795,-6888.0,0.00042999,30]
[419212750,1775019084804,-7142.856,0.00042999,64]
[419212751,1775019084814,-7407.141672,0.00042999,70]
[419212752,1775019084823,-500.0,0.00042999,30]
[419212753,1775019084833,-7681.20591386,0.00042999,120]
[419212754,1775019084843,-2486.0,0.00042999,30]
[419212755,1775019084853,-500.0,0.00042999,30]
[419212756,1775019084862,-2486.0,0.00042999,64]
[419212757,1775019084872,-500.0,0.00042999,64]
[419212758,1775019084881,-2486.0,0.00042999,70]
[419212759,1775019084891,-2486.0,0.00042999,120]
[419212760,1775019084901,-500.0,0.00042999,70]
[419212761,1775019084910,-500.0,0.00042999,120]
[419212762,1775019084920,-500.0,0.00042999,30]
[419212763,1775019084930,-500.0,0.00042999,30]
[419212764,1775019084940,-518.5,0.00042999,64]
[419212765,1775019084950,-500.0,0.00042999,30]
[419212766,1775019084959,-518.5,0.00042999,64]
[419212767,1775019084969,-537.6845,0.00042999,70]
[419212768,1775019084979,-500.0,0.00042999,64]
[419212769,1775019084990,-537.6845,0.00042999,70]
[419212770,1775019084999,-557.5788265,0.00042999,120]
[419212771,1775019085009,-500.0,0.00042999,70]
[419212772,1775019085019,-557.5788265,0.00042999,120]
[419212773,1775019085029,-500.0,0.00042999,120]
[419212774,1775019085039,-1030.0,0.00042999,30]
[419212775,1775019085049,-250.0,0.00042999,30]
[419212776,1775019085059,-250.0,0.00042999,64]
[419212777,1775019085068,-1068.11,0.00042999,64]
[419212778,1775019085078,-250.0,0.00042999,70]
[419212779,1775019085087,-1107.63007,0.00042999,70]
[419212780,1775019085098,-1148.61238259,0.00042999,120]